[Event "Titled Tuesday Blitz November 14 Late 2023"]
[White "Weimarraner"]
[Black "Arifarsky"]
[WhiteElo "2532"]
[BlackElo "2723"]
[Result "0-1"]
[Round "5"]
[TimeControl "180+1"]
[Date "2023.11.14"]
[WhiteClock "0:00:36"]
[BlackClock "0:00:40"]
[Board "47"]

1. d4 {[%clk 0:03:00]}  Nf6 {[%clk 0:02:59]} 2. Nf3 {[%clk 0:03:00]}  d5 {[%clk 0:03:00]} 3. e3 {[%clk 0:03:01]}  g6 {[%clk 0:02:58]} 4. b4 {[%clk 0:03:00]}  Bg7 {[%clk 0:02:58]} 5. Be2 {[%clk 0:03:00]}  a5 {[%clk 0:02:58]} 6. b5 {[%clk 0:03:00]}  O-O {[%clk 0:02:57]} 7. O-O {[%clk 0:03:00]}  c5 {[%clk 0:02:54]} 8. bxc6 {[%clk 0:03:00]}  Nxc6 {[%clk 0:02:54]} 9. Ba3 {[%clk 0:03:01]}  Re8 {[%clk 0:02:50]} 10. Nbd2 {[%clk 0:03:01]}  Bf5 {[%clk 0:02:45]} 11. c4 {[%clk 0:03:00]}  dxc4 {[%clk 0:02:32]} 12. Nxc4 {[%clk 0:03:01]}  Nd5 {[%clk 0:02:27]} 13. Qd2 {[%clk 0:02:55]}  b5 {[%clk 0:02:21]} 14. Nce5 {[%clk 0:02:55]}  Nxe5 {[%clk 0:02:20]} 15. Nxe5 {[%clk 0:02:55]}  b4 {[%clk 0:02:18]} 16. Bb2 {[%clk 0:02:50]}  Bxe5 {[%clk 0:02:15]} 17. dxe5 {[%clk 0:02:51]}  Nf4 {[%clk 0:02:12]} 18. Rfd1 {[%clk 0:02:38]}  Nxe2+ {[%clk 0:01:54]} 19. Qxe2 {[%clk 0:02:38]}  Qb6 {[%clk 0:01:55]} 20. e6 {[%clk 0:02:06]}  Bxe6 {[%clk 0:01:46]} 21. h4 {[%clk 0:01:55]}  Red8 {[%clk 0:01:24]} 22. h5 {[%clk 0:01:53]}  Qc5 {[%clk 0:01:23]} 23. hxg6 {[%clk 0:01:51]}  hxg6 {[%clk 0:01:23]} 24. Qf3 {[%clk 0:01:43]}  f6 {[%clk 0:01:18]} 25. Rxd8+ {[%clk 0:01:10]}  Rxd8 {[%clk 0:01:17]} 26. Bxf6 {[%clk 0:01:10]}  exf6 {[%clk 0:00:58]} 27. Qxf6 {[%clk 0:01:11]}  Re8 {[%clk 0:00:52]} 28. Qxg6+ {[%clk 0:01:10]}  Kf8 {[%clk 0:00:52]} 29. Qh6+ {[%clk 0:00:51]}  Ke7 {[%clk 0:00:52]} 30. Rd1 {[%clk 0:00:47]}  Qe5 {[%clk 0:00:42]} 31. Qh4+ {[%clk 0:00:40]}  Qf6 {[%clk 0:00:40]} 32. Qd4 {[%clk 0:00:36]}  Qxd4 {[%clk 0:00:40]} 0-1


[Site "https://www.chess.com"]

[Event "Titled Tuesday Blitz November 14 Late 2023"]
[White "GatoRojo150"]
[Black "WindWhistler11"]
[WhiteElo "2631"]
[BlackElo "2495"]
[Result "1-0"]
[Round "5"]
[TimeControl "180+1"]
[Date "2023.11.14"]
[WhiteClock "0:01:05"]
[BlackClock "0:00:00"]
[Board "53"]

1. e4 {[%clk 0:03:00]}  e6 {[%clk 0:02:54]} 2. d4 {[%clk 0:03:00]}  d5 {[%clk 0:02:55]} 3. Nc3 {[%clk 0:03:00]}  Bb4 {[%clk 0:02:55]} 4. e5 {[%clk 0:03:01]}  Ne7 {[%clk 0:02:55]} 5. a3 {[%clk 0:03:01]}  Bxc3+ {[%clk 0:02:54]} 6. bxc3 {[%clk 0:03:02]}  c5 {[%clk 0:02:54]} 7. Qg4 {[%clk 0:03:01]}  Nf5 {[%clk 0:02:51]} 8. Bd3 {[%clk 0:02:54]}  h5 {[%clk 0:02:40]} 9. Qf4 {[%clk 0:02:54]}  Qa5 {[%clk 0:02:39]} 10. Bd2 {[%clk 0:02:53]}  c4 {[%clk 0:02:28]} 11. Bxf5 {[%clk 0:02:51]}  exf5 {[%clk 0:02:29]} 12. Nf3 {[%clk 0:02:48]}  Nc6 {[%clk 0:02:21]} 13. a4 {[%clk 0:02:44]}  Be6 {[%clk 0:02:17]} 14. O-O {[%clk 0:02:43]}  Ne7 {[%clk 0:02:07]} 15. Rfb1 {[%clk 0:02:32]}  Ng6 {[%clk 0:01:57]} 16. Qg5 {[%clk 0:02:19]}  Qc7 {[%clk 0:01:54]} 17. Bc1 {[%clk 0:02:15]}  b6 {[%clk 0:00:42]} 18. Ba3 {[%clk 0:02:15]}  Qd8 {[%clk 0:00:38]} 19. Qd2 {[%clk 0:02:06]}  f4 {[%clk 0:00:35]} 20. Bd6 {[%clk 0:02:03]}  Bg4 {[%clk 0:00:34]} 21. Ne1 {[%clk 0:01:48]}  Qg5 {[%clk 0:00:29]} 22. f3 {[%clk 0:01:46]}  Bf5 {[%clk 0:00:28]} 23. a5 {[%clk 0:01:44]}  Rd8 {[%clk 0:00:09]} 24. axb6 {[%clk 0:01:43]}  axb6 {[%clk 0:00:10]} 25. Ra7 {[%clk 0:01:42]}  h4 {[%clk 0:00:07]} 26. Rxb6 {[%clk 0:01:28]}  h3 {[%clk 0:00:07]} 27. Rbb7 {[%clk 0:01:27]}  Bd7 {[%clk 0:00:05]} 28. Qe2 {[%clk 0:01:14]}  Nh4 {[%clk 0:00:04]} 29. Bc7 {[%clk 0:01:07]}  Rc8 {[%clk 0:00:04]} 30. Bb6 {[%clk 0:01:07]}  Be6 {[%clk 0:00:03]} 31. Bc5 {[%clk 0:01:06]}  Nxg2 {[%clk 0:00:00]} 32. Re7+ {[%clk 0:01:05]} 1-0


[Site "https://www.chess.com"]

[Event "Titled Tuesday Blitz November 14 Late 2023"]
[White "Marcziter, Dmitrii"]
[Black "Guerra Tulcan, Lenin"]
[WhiteFideId "13900765"]
[BlackFideId "3601382"]
[WhiteElo "2437"]
[BlackElo "2605"]
[Result "0-1"]
[Round "5"]
[TimeControl "180+1"]
[Date "2023.11.14"]
[WhiteClock "0:00:16"]
[BlackClock "0:00:11"]
[Board "57"]

1. d4 {[%clk 0:03:00]}  Nf6 {[%clk 0:02:59]} 2. c4 {[%clk 0:03:00]}  e6 {[%clk 0:02:59]} 3. Nf3 {[%clk 0:02:59]}  Bb4+ {[%clk 0:02:59]} 4. Nbd2 {[%clk 0:02:58]}  c5 {[%clk 0:02:58]} 5. a3 {[%clk 0:02:58]}  Bxd2+ {[%clk 0:02:55]} 6. Bxd2 {[%clk 0:02:56]}  cxd4 {[%clk 0:02:54]} 7. Nxd4 {[%clk 0:02:56]}  O-O {[%clk 0:02:55]} 8. g3 {[%clk 0:02:44]}  d5 {[%clk 0:02:52]} 9. Bg2 {[%clk 0:02:40]}  Nc6 {[%clk 0:02:39]} 10. Nxc6 {[%clk 0:02:34]}  bxc6 {[%clk 0:02:40]} 11. O-O {[%clk 0:02:32]}  Ba6 {[%clk 0:02:37]} 12. cxd5 {[%clk 0:02:30]}  cxd5 {[%clk 0:02:38]} 13. b4 {[%clk 0:02:26]}  Bc4 {[%clk 0:02:36]} 14. Re1 {[%clk 0:02:24]}  Qb6 {[%clk 0:02:33]} 15. Be3 {[%clk 0:02:22]}  Qb5 {[%clk 0:02:27]} 16. Bc5 {[%clk 0:02:19]}  Rfc8 {[%clk 0:02:22]} 17. a4 {[%clk 0:02:18]}  Qe8 {[%clk 0:02:19]} 18. Bd4 {[%clk 0:02:14]}  Nd7 {[%clk 0:02:15]} 19. e4 {[%clk 0:02:04]}  dxe4 {[%clk 0:01:44]} 20. Bxe4 {[%clk 0:02:03]}  Rab8 {[%clk 0:01:44]} 21. b5 {[%clk 0:02:00]}  a6 {[%clk 0:01:43]} 22. Bc6 {[%clk 0:01:48]}  axb5 {[%clk 0:01:36]} 23. Qg4 {[%clk 0:01:36]}  g6 {[%clk 0:01:26]} 24. axb5 {[%clk 0:01:18]}  Bxb5 {[%clk 0:01:27]} 25. Bxd7 {[%clk 0:01:17]}  Qxd7 {[%clk 0:01:05]} 26. Ra7 {[%clk 0:01:13]}  Qd5 {[%clk 0:00:28]} 27. Qf4 {[%clk 0:01:04]}  e5 {[%clk 0:00:28]} 28. Rxe5 {[%clk 0:00:52]}  Rc1+ {[%clk 0:00:15]} 29. Qxc1 {[%clk 0:00:49]}  Qxd4 {[%clk 0:00:16]} 30. Rc5 {[%clk 0:00:41]}  Rd8 {[%clk 0:00:14]} 31. Rc8 {[%clk 0:00:27]}  Rxc8 {[%clk 0:00:11]} 32. Qxc8+ {[%clk 0:00:26]}  Kg7 {[%clk 0:00:11]} 33. Qb7 {[%clk 0:00:20]}  Qd1+ {[%clk 0:00:10]} 34. Kg2 {[%clk 0:00:18]}  Bf1+ {[%clk 0:00:11]} 35. Kg1 {[%clk 0:00:16]}  Bh3# {[%clk 0:00:11]} 0-1


[Site "https://www.chess.com"]

[Event "Titled Tuesday Blitz November 14 Late 2023"]
[White "aghasiyevkamal"]
[Black "Bettalli, Francesco"]
[BlackFideId "2816453"]
[WhiteElo "2588"]
[BlackElo "2556"]
[Result "0-1"]
[Round "5"]
[TimeControl "180+1"]
[Date "2023.11.14"]
[WhiteClock "0:00:11"]
[BlackClock "0:00:20"]
[Board "58"]

1. e4 {[%clk 0:02:59]}  e5 {[%clk 0:02:54]} 2. Nf3 {[%clk 0:02:58]}  Nf6 {[%clk 0:02:54]} 3. Nxe5 {[%clk 0:02:55]}  Nc6 {[%clk 0:02:54]} 4. Nf3 {[%clk 0:02:47]}  Nxe4 {[%clk 0:02:54]} 5. d4 {[%clk 0:02:46]}  d5 {[%clk 0:02:54]} 6. Bd3 {[%clk 0:02:44]}  Bd6 {[%clk 0:02:53]} 7. c4 {[%clk 0:02:42]}  O-O {[%clk 0:02:44]} 8. O-O {[%clk 0:02:23]}  Bf5 {[%clk 0:01:58]} 9. Nc3 {[%clk 0:02:19]}  Nxc3 {[%clk 0:01:57]} 10. bxc3 {[%clk 0:02:19]}  Bxd3 {[%clk 0:01:56]} 11. Qxd3 {[%clk 0:02:20]}  dxc4 {[%clk 0:01:57]} 12. Qxc4 {[%clk 0:02:20]}  Na5 {[%clk 0:01:57]} 13. Qd3 {[%clk 0:02:07]}  h6 {[%clk 0:01:53]} 14. c4 {[%clk 0:02:04]}  Nc6 {[%clk 0:01:43]} 15. Bb2 {[%clk 0:02:01]}  Qf6 {[%clk 0:01:40]} 16. Rad1 {[%clk 0:02:00]}  Rad8 {[%clk 0:01:39]} 17. Qb3 {[%clk 0:02:00]}  Qf4 {[%clk 0:01:36]} 18. Bc1 {[%clk 0:01:45]}  Qf6 {[%clk 0:01:12]} 19. c5 {[%clk 0:01:42]}  Bf4 {[%clk 0:01:10]} 20. Bb2 {[%clk 0:01:37]}  Na5 {[%clk 0:01:07]} 21. Qb4 {[%clk 0:01:32]}  b6 {[%clk 0:01:06]} 22. d5 {[%clk 0:01:27]}  Qf5 {[%clk 0:01:06]} 23. Qd4 {[%clk 0:01:02]}  f6 {[%clk 0:00:57]} 24. Rfe1 {[%clk 0:00:49]}  Nb7 {[%clk 0:00:56]} 25. c6 {[%clk 0:00:45]}  Nc5 {[%clk 0:00:55]} 26. Qc4 {[%clk 0:00:42]}  Bd6 {[%clk 0:00:54]} 27. Ba3 {[%clk 0:00:36]}  Kh8 {[%clk 0:00:49]} 28. Nh4 {[%clk 0:00:31]}  Qg5 {[%clk 0:00:44]} 29. Bc1 {[%clk 0:00:28]}  Qh5 {[%clk 0:00:40]} 30. Rd4 {[%clk 0:00:22]}  Rfe8 {[%clk 0:00:33]} 31. Rf1 {[%clk 0:00:21]}  Qe2 {[%clk 0:00:20]} 32. Qc2 {[%clk 0:00:11]}  Qxc2 {[%clk 0:00:20]} 0-1


[Site "https://www.chess.com"]

[Event "Titled Tuesday Blitz November 14 Late 2023"]
[White "sjoerd893"]
[Black "TheAlienParty"]
[WhiteElo "2566"]
[BlackElo "2381"]
[Result "1-0"]
[Round "5"]
[TimeControl "180+1"]
[Date "2023.11.14"]
[WhiteClock "0:00:26"]
[BlackClock "0:00:20"]
[Board "60"]

1. e4 {[%clk 0:03:00]}  e5 {[%clk 0:02:56]} 2. Nf3 {[%clk 0:03:00]}  Nc6 {[%clk 0:02:56]} 3. Bc4 {[%clk 0:03:00]}  Bc5 {[%clk 0:02:55]} 4. c3 {[%clk 0:02:59]}  Nf6 {[%clk 0:02:54]} 5. d3 {[%clk 0:02:58]}  O-O {[%clk 0:02:53]} 6. Nbd2 {[%clk 0:02:52]}  d5 {[%clk 0:02:53]} 7. exd5 {[%clk 0:02:47]}  Nxd5 {[%clk 0:02:52]} 8. Ne4 {[%clk 0:02:48]}  Be7 {[%clk 0:02:51]} 9. O-O {[%clk 0:02:42]}  h6 {[%clk 0:02:50]} 10. Re1 {[%clk 0:02:25]}  a5 {[%clk 0:02:47]} 11. Ng3 {[%clk 0:02:17]}  Bg4 {[%clk 0:02:46]} 12. h3 {[%clk 0:02:15]}  Bxf3 {[%clk 0:02:31]} 13. Qxf3 {[%clk 0:02:15]}  Nb6 {[%clk 0:02:29]} 14. Bb3 {[%clk 0:02:04]}  a4 {[%clk 0:02:27]} 15. Bc2 {[%clk 0:02:03]}  Bc5 {[%clk 0:02:24]} 16. Nf5 {[%clk 0:01:44]}  Kh8 {[%clk 0:02:02]} 17. Qe4 {[%clk 0:01:17]}  Nd5 {[%clk 0:01:42]} 18. d4 {[%clk 0:00:59]}  Nf6 {[%clk 0:01:36]} 19. Qd3 {[%clk 0:00:55]}  e4 {[%clk 0:01:34]} 20. Qg3 {[%clk 0:00:53]}  Nh5 {[%clk 0:00:59]} 21. Qg4 {[%clk 0:00:49]}  g6 {[%clk 0:00:55]} 22. dxc5 {[%clk 0:00:45]}  Nf6 {[%clk 0:00:54]} 23. Qh4 {[%clk 0:00:36]}  h5 {[%clk 0:00:53]} 24. Bg5 {[%clk 0:00:32]}  Qd7 {[%clk 0:00:42]} 25. Bxf6+ {[%clk 0:00:31]}  Kh7 {[%clk 0:00:40]} 26. Bxe4 {[%clk 0:00:28]}  Rae8 {[%clk 0:00:20]} 27. Qg5 {[%clk 0:00:26]} 1-0


[Site "https://www.chess.com"]

[Event "Titled Tuesday Blitz November 14 Late 2023"]
[White "Arnold, Ken"]
[Black "Avalos Parra, Joao"]
[WhiteFideId "2056836"]
[BlackFideId "3402541"]
[WhiteElo "2420"]
[BlackElo "2344"]
[Result "0-1"]
[Round "5"]
[TimeControl "180+1"]
[Date "2023.11.14"]
[WhiteClock "0:00:01"]
[BlackClock "0:00:10"]
[Board "61"]

1. d4 {[%clk 0:02:56]}  d5 {[%clk 0:02:29]} 2. Nf3 {[%clk 0:02:54]}  Nf6 {[%clk 0:02:29]} 3. Bg5 {[%clk 0:02:53]}  e6 {[%clk 0:02:26]} 4. c3 {[%clk 0:02:53]}  Nbd7 {[%clk 0:02:25]} 5. e3 {[%clk 0:02:53]}  Be7 {[%clk 0:02:22]} 6. Bd3 {[%clk 0:02:53]}  b6 {[%clk 0:02:18]} 7. Nbd2 {[%clk 0:02:52]}  Bb7 {[%clk 0:02:18]} 8. O-O {[%clk 0:02:52]}  O-O {[%clk 0:02:18]} 9. Qc2 {[%clk 0:02:51]}  h6 {[%clk 0:02:17]} 10. Bh4 {[%clk 0:02:47]}  Rc8 {[%clk 0:02:09]} 11. Rad1 {[%clk 0:02:43]}  c5 {[%clk 0:02:09]} 12. Rfe1 {[%clk 0:02:41]}  a6 {[%clk 0:02:01]} 13. h3 {[%clk 0:02:39]}  b5 {[%clk 0:02:01]} 14. Ne5 {[%clk 0:02:36]}  b4 {[%clk 0:02:00]} 15. Nxd7 {[%clk 0:02:35]}  Nxd7 {[%clk 0:01:58]} 16. Bxe7 {[%clk 0:02:26]}  Qxe7 {[%clk 0:01:59]} 17. cxb4 {[%clk 0:02:25]}  cxd4 {[%clk 0:01:56]} 18. Qb3 {[%clk 0:02:19]}  dxe3 {[%clk 0:01:56]} 19. Rxe3 {[%clk 0:02:17]}  Qf6 {[%clk 0:01:32]} 20. Nf3 {[%clk 0:02:07]}  h5 {[%clk 0:01:21]} 21. Rde1 {[%clk 0:01:57]}  d4 {[%clk 0:01:12]} 22. R3e2 {[%clk 0:01:40]}  Bd5 {[%clk 0:01:04]} 23. Qa3 {[%clk 0:01:34]}  Bxf3 {[%clk 0:00:41]} 24. gxf3 {[%clk 0:01:34]}  g6 {[%clk 0:00:29]} 25. Bxa6 {[%clk 0:01:27]}  Rc1 {[%clk 0:00:22]} 26. Qd3 {[%clk 0:00:24]}  Rxe1+ {[%clk 0:00:19]} 27. Rxe1 {[%clk 0:00:24]}  Ne5 {[%clk 0:00:12]} 28. Rxe5 {[%clk 0:00:21]}  Qxe5 {[%clk 0:00:13]} 29. b5 {[%clk 0:00:20]}  Qg5+ {[%clk 0:00:11]} 30. Kf1 {[%clk 0:00:19]}  Qc1+ {[%clk 0:00:11]} 31. Kg2 {[%clk 0:00:19]}  Qxb2 {[%clk 0:00:11]} 32. a4 {[%clk 0:00:18]}  Rd8 {[%clk 0:00:12]} 33. a5 {[%clk 0:00:11]}  Qc3 {[%clk 0:00:11]} 34. Qe4 {[%clk 0:00:01]}  Qxa5 {[%clk 0:00:10]} 0-1


[Site "https://www.chess.com"]

[Event "Titled Tuesday Blitz November 14 Late 2023"]
[White "Fernandez Bustamante, Leancy B."]
[Black "BardArtem"]
[WhiteFideId "3523870"]
[WhiteElo "2381"]
[BlackElo "2823"]
[Result "0-1"]
[Round "5"]
[TimeControl "180+1"]
[Date "2023.11.14"]
[WhiteClock "0:00:22"]
[BlackClock "0:01:12"]
[Board "62"]

1. e4 {[%clk 0:03:00]}  e5 {[%clk 0:03:00]} 2. Nf3 {[%clk 0:02:56]}  Nc6 {[%clk 0:03:00]} 3. Nc3 {[%clk 0:02:57]}  Nf6 {[%clk 0:02:59]} 4. Bb5 {[%clk 0:02:55]}  Bb4 {[%clk 0:02:55]} 5. O-O {[%clk 0:02:54]}  O-O {[%clk 0:02:55]} 6. d3 {[%clk 0:02:55]}  Bxc3 {[%clk 0:02:54]} 7. bxc3 {[%clk 0:02:56]}  d6 {[%clk 0:02:55]} 8. Bg5 {[%clk 0:02:56]}  Qe7 {[%clk 0:02:51]} 9. Re1 {[%clk 0:02:54]}  Nd8 {[%clk 0:02:49]} 10. Bc4 {[%clk 0:02:52]}  Be6 {[%clk 0:02:47]} 11. Bb3 {[%clk 0:02:47]}  a5 {[%clk 0:02:44]} 12. Rb1 {[%clk 0:02:44]}  b6 {[%clk 0:02:41]} 13. Bd5 {[%clk 0:02:41]}  Bxd5 {[%clk 0:02:35]} 14. exd5 {[%clk 0:02:41]}  h6 {[%clk 0:02:33]} 15. Bxf6 {[%clk 0:02:27]}  Qxf6 {[%clk 0:02:33]} 16. d4 {[%clk 0:02:14]}  Re8 {[%clk 0:02:24]} 17. dxe5 {[%clk 0:02:12]}  dxe5 {[%clk 0:02:25]} 18. Nd2 {[%clk 0:02:06]}  Qg6 {[%clk 0:02:07]} 19. Qf3 {[%clk 0:01:45]}  Nb7 {[%clk 0:02:04]} 20. Nc4 {[%clk 0:01:35]}  Nd6 {[%clk 0:01:57]} 21. Nxe5 {[%clk 0:01:30]}  Qxc2 {[%clk 0:01:57]} 22. h3 {[%clk 0:01:11]}  Rxe5 {[%clk 0:01:56]} 23. Rec1 {[%clk 0:01:07]}  Qe4 {[%clk 0:01:55]} 24. Qg3 {[%clk 0:01:07]}  Rae8 {[%clk 0:01:46]} 25. Re1 {[%clk 0:01:04]}  Qxd5 {[%clk 0:01:44]} 26. Red1 {[%clk 0:00:58]}  Qxa2 {[%clk 0:01:42]} 27. Ra1 {[%clk 0:00:54]}  Qc4 {[%clk 0:01:39]} 28. f4 {[%clk 0:00:54]}  Re3 {[%clk 0:01:38]} 29. Qg4 {[%clk 0:00:52]}  Rxc3 {[%clk 0:01:35]} 30. Qd7 {[%clk 0:00:45]}  Qc6 {[%clk 0:01:32]} 31. Qg4 {[%clk 0:00:39]}  Rc2 {[%clk 0:01:32]} 32. Re1 {[%clk 0:00:36]}  Rxe1+ {[%clk 0:01:30]} 33. Rxe1 {[%clk 0:00:37]}  Rc1 {[%clk 0:01:30]} 34. Rxc1 {[%clk 0:00:35]}  Qxc1+ {[%clk 0:01:31]} 35. Kh2 {[%clk 0:00:35]}  a4 {[%clk 0:01:31]} 36. Qd7 {[%clk 0:00:34]}  Qxf4+ {[%clk 0:01:31]} 37. Kh1 {[%clk 0:00:34]}  a3 {[%clk 0:01:27]} 38. Qd8+ {[%clk 0:00:31]}  Kh7 {[%clk 0:01:26]} 39. Qa8 {[%clk 0:00:30]}  Qc1+ {[%clk 0:01:12]} 40. Kh2 {[%clk 0:00:22]}  Qb2 {[%clk 0:01:12]} 0-1


[Site "https://www.chess.com"]

[Event "Titled Tuesday Blitz November 14 Late 2023"]
[White "Kovacsy, Barnabas"]
[Black "Klekowski, Maciej"]
[WhiteFideId "769290"]
[BlackFideId "1132717"]
[WhiteElo "2515"]
[BlackElo "2819"]
[Result "0-1"]
[Round "5"]
[TimeControl "180+1"]
[Date "2023.11.14"]
[WhiteClock "0:00:15"]
[BlackClock "0:01:50"]
[Board "63"]

1. e4 {[%clk 0:03:00]}  d5 {[%clk 0:02:58]} 2. exd5 {[%clk 0:03:00]}  Nf6 {[%clk 0:02:58]} 3. Nc3 {[%clk 0:02:55]}  Nxd5 {[%clk 0:02:58]} 4. Nxd5 {[%clk 0:02:55]}  Qxd5 {[%clk 0:02:58]} 5. Nf3 {[%clk 0:02:53]}  Bg4 {[%clk 0:02:57]} 6. Be2 {[%clk 0:02:53]}  Nc6 {[%clk 0:02:51]} 7. h3 {[%clk 0:02:52]}  Bh5 {[%clk 0:02:50]} 8. d3 {[%clk 0:02:39]}  e5 {[%clk 0:02:49]} 9. O-O {[%clk 0:02:30]}  Bd6 {[%clk 0:02:47]} 10. Be3 {[%clk 0:02:24]}  O-O {[%clk 0:02:45]} 11. Nd2 {[%clk 0:02:18]}  Bxe2 {[%clk 0:02:45]} 12. Qxe2 {[%clk 0:02:19]}  f5 {[%clk 0:02:45]} 13. Qf3 {[%clk 0:01:51]}  Qf7 {[%clk 0:02:44]} 14. Nb3 {[%clk 0:00:57]}  Rae8 {[%clk 0:02:45]} 15. Bc5 {[%clk 0:00:57]}  Kh8 {[%clk 0:02:44]} 16. Bxd6 {[%clk 0:00:56]}  cxd6 {[%clk 0:02:45]} 17. Qe2 {[%clk 0:00:54]}  f4 {[%clk 0:02:43]} 18. f3 {[%clk 0:00:53]}  d5 {[%clk 0:02:43]} 19. Rfe1 {[%clk 0:00:51]}  Nd4 {[%clk 0:02:42]} 20. Nxd4 {[%clk 0:00:50]}  exd4 {[%clk 0:02:43]} 21. Qd2 {[%clk 0:00:49]}  Re3 {[%clk 0:02:43]} 22. c3 {[%clk 0:00:47]}  dxc3 {[%clk 0:02:41]} 23. bxc3 {[%clk 0:00:46]}  Rfe8 {[%clk 0:02:42]} 24. Rxe3 {[%clk 0:00:46]}  fxe3 {[%clk 0:02:41]} 25. Qe2 {[%clk 0:00:44]}  d4 {[%clk 0:02:41]} 26. cxd4 {[%clk 0:00:44]}  Qf4 {[%clk 0:02:41]} 27. Rb1 {[%clk 0:00:43]}  b6 {[%clk 0:02:39]} 28. Rb4 {[%clk 0:00:42]}  Rc8 {[%clk 0:02:37]} 29. Rc4 {[%clk 0:00:40]}  Rxc4 {[%clk 0:02:36]} 30. dxc4 {[%clk 0:00:41]}  Qxd4 {[%clk 0:02:37]} 31. Kf1 {[%clk 0:00:41]}  Kg8 {[%clk 0:02:29]} 32. Ke1 {[%clk 0:00:35]}  Qc3+ {[%clk 0:02:28]} 33. Kf1 {[%clk 0:00:32]}  Qc1+ {[%clk 0:02:27]} 34. Qe1 {[%clk 0:00:32]}  Qxc4+ {[%clk 0:02:28]} 35. Qe2 {[%clk 0:00:31]}  Qd4 {[%clk 0:02:19]} 36. Ke1 {[%clk 0:00:27]}  Qc3+ {[%clk 0:02:15]} 37. Kf1 {[%clk 0:00:25]}  Kf7 {[%clk 0:02:14]} 38. f4 {[%clk 0:00:21]}  Ke7 {[%clk 0:01:52]} 39. f5 {[%clk 0:00:17]}  Qc1+ {[%clk 0:01:46]} 40. Qe1 {[%clk 0:00:16]}  Qxe1+ {[%clk 0:01:47]} 41. Kxe1 {[%clk 0:00:17]}  Kf6 {[%clk 0:01:47]} 42. Ke2 {[%clk 0:00:18]}  Kxf5 {[%clk 0:01:48]} 43. Kxe3 {[%clk 0:00:19]}  Ke5 {[%clk 0:01:48]} 44. g3 {[%clk 0:00:18]}  b5 {[%clk 0:01:49]} 45. Kd3 {[%clk 0:00:18]}  a5 {[%clk 0:01:49]} 46. Kc3 {[%clk 0:00:15]}  Ke4 {[%clk 0:01:50]} 0-1


[Site "https://www.chess.com"]

[Event "Titled Tuesday Blitz November 14 Late 2023"]
[White "HeroRubiksCube"]
[Black "Goltsev, Dmitry"]
[BlackFideId "24176710"]
[WhiteElo "2511"]
[BlackElo "2718"]
[Result "0-1"]
[Round "5"]
[TimeControl "180+1"]
[Date "2023.11.14"]
[WhiteClock "0:00:37"]
[BlackClock "0:00:46"]
[Board "65"]

1. d4 {[%clk 0:03:00]}  e6 {[%clk 0:03:00]} 2. c4 {[%clk 0:02:58]}  b6 {[%clk 0:02:59]} 3. Nc3 {[%clk 0:02:55]}  Nf6 {[%clk 0:02:59]} 4. e4 {[%clk 0:02:52]}  d5 {[%clk 0:02:59]} 5. e5 {[%clk 0:02:51]}  Ne4 {[%clk 0:02:59]} 6. Nxe4 {[%clk 0:02:51]}  dxe4 {[%clk 0:03:00]} 7. Ne2 {[%clk 0:02:49]}  Nc6 {[%clk 0:02:59]} 8. Be3 {[%clk 0:02:46]}  Nb4 {[%clk 0:02:55]} 9. Nc3 {[%clk 0:02:42]}  Bb7 {[%clk 0:02:54]} 10. a3 {[%clk 0:02:38]}  Nd3+ {[%clk 0:02:53]} 11. Bxd3 {[%clk 0:02:38]}  exd3 {[%clk 0:02:54]} 12. O-O {[%clk 0:02:37]}  Qh4 {[%clk 0:02:33]} 13. Qxd3 {[%clk 0:02:32]}  O-O-O {[%clk 0:02:13]} 14. f3 {[%clk 0:02:09]}  Be7 {[%clk 0:02:04]} 15. Rad1 {[%clk 0:02:00]}  g5 {[%clk 0:02:03]} 16. Bf2 {[%clk 0:01:47]}  Qh5 {[%clk 0:02:00]} 17. Ne4 {[%clk 0:01:42]}  g4 {[%clk 0:01:58]} 18. Ng3 {[%clk 0:01:38]}  Qg5 {[%clk 0:01:48]} 19. f4 {[%clk 0:01:20]}  Qg7 {[%clk 0:01:32]} 20. f5 {[%clk 0:01:17]}  Bg5 {[%clk 0:01:20]} 21. Be3 {[%clk 0:01:09]}  h5 {[%clk 0:01:18]} 22. Bxg5 {[%clk 0:00:57]}  Qxg5 {[%clk 0:01:17]} 23. Ne4 {[%clk 0:00:58]}  Qg7 {[%clk 0:01:09]} 24. Qe3 {[%clk 0:00:55]}  Rhg8 {[%clk 0:01:06]} 25. fxe6 {[%clk 0:00:51]}  fxe6 {[%clk 0:01:02]} 26. Rf6 {[%clk 0:00:52]}  h4 {[%clk 0:00:58]} 27. Rdf1 {[%clk 0:00:52]}  h3 {[%clk 0:00:55]} 28. Rf7 {[%clk 0:00:46]}  Qg6 {[%clk 0:00:53]} 29. R1f6 {[%clk 0:00:46]}  Qxe4 {[%clk 0:00:51]} 30. Qxe4 {[%clk 0:00:40]}  Bxe4 {[%clk 0:00:52]} 31. Rxe6 {[%clk 0:00:37]}  Rxd4 {[%clk 0:00:49]} 32. Ree7 {[%clk 0:00:38]}  Rd1+ {[%clk 0:00:46]} 33. Kf2 {[%clk 0:00:37]}  hxg2 {[%clk 0:00:46]} 0-1


[Site "https://www.chess.com"]